[Event "Chessable Masters - Torneo preliminare"]
[White "Iniyan, P"]
[Black "Hong, Andrew"]
[WhiteFideId "25002767"]
[BlackFideId "2099438"]
[WhiteElo "2441"]
[BlackElo "2483"]
[Result "1-0"]
[Round "5"]
[TimeControl "600+2"]
[Date "2023.03.13"]
[WhiteClock "0:03:32"]
[BlackClock "0:03:17"]

1. d4 {[%clk 0:10:01]}  Nf6 {[%clk 0:09:53]} 2. c4 {[%clk 0:10:03]}  e6 {[%clk 0:09:50]} 3. Nc3 {[%clk 0:10:04]}  Bb4 {[%clk 0:09:48]} 4. e3 {[%clk 0:10:05]}  O-O {[%clk 0:09:47]} 5. Bd3 {[%clk 0:10:06]}  d5 {[%clk 0:09:45]} 6. cxd5 {[%clk 0:10:06]}  exd5 {[%clk 0:09:45]} 7. a3 {[%clk 0:10:08]}  Bd6 {[%clk 0:09:43]} 8. Qc2 {[%clk 0:10:08]}  c6 {[%clk 0:09:29]} 9. Nge2 {[%clk 0:10:09]}  Re8 {[%clk 0:09:23]} 10. Bd2 {[%clk 0:10:09]}  a5 {[%clk 0:09:10]} 11. f3 {[%clk 0:10:10]}  Na6 {[%clk 0:09:10]} 12. g4 {[%clk 0:10:10]}  g6 {[%clk 0:09:04]} 13. h4 {[%clk 0:10:10]}  c5 {[%clk 0:09:04]} 14. h5 {[%clk 0:09:54]}  c4 {[%clk 0:08:55]} 15. hxg6 {[%clk 0:09:54]}  cxd3 {[%clk 0:08:52]} 16. gxf7+ {[%clk 0:09:54]}  Kxf7 {[%clk 0:08:53]} 17. Qxd3 {[%clk 0:09:55]}  Rg8 {[%clk 0:08:40]} 18. O-O-O {[%clk 0:09:51]}  Nb4 {[%clk 0:08:31]} 19. axb4 {[%clk 0:09:34]}  axb4 {[%clk 0:08:33]} 20. Nb5 {[%clk 0:09:29]}  Be6 {[%clk 0:08:24]} 21. Kb1 {[%clk 0:08:58]}  Bf8 {[%clk 0:08:24]} 22. Rc1 {[%clk 0:08:24]}  Qa5 {[%clk 0:08:17]} 23. Rc7+ {[%clk 0:08:24]}  Ke8 {[%clk 0:08:16]} 24. Rxb7 {[%clk 0:07:04]}  Rg7 {[%clk 0:07:51]} 25. Rxg7 {[%clk 0:06:32]}  Bxg7 {[%clk 0:07:53]} 26. Rc1 {[%clk 0:06:32]}  Bf7 {[%clk 0:07:26]} 27. Nd6+ {[%clk 0:05:47]}  Kf8 {[%clk 0:07:26]} 28. Nxf7 {[%clk 0:05:48]}  Qa4 {[%clk 0:07:20]} 29. Nd6 {[%clk 0:04:46]}  b3 {[%clk 0:07:08]} 30. Rc8+ {[%clk 0:04:47]}  Rxc8 {[%clk 0:06:54]} 31. Nxc8 {[%clk 0:04:49]}  Qa2+ {[%clk 0:06:28]} 32. Kc1 {[%clk 0:04:47]}  Qa1+ {[%clk 0:06:29]} 33. Qb1 {[%clk 0:04:48]}  Qa6 {[%clk 0:06:30]} 34. Bb4+ {[%clk 0:04:48]}  Kg8 {[%clk 0:06:28]} 35. Ne7+ {[%clk 0:04:48]}  Kf7 {[%clk 0:06:28]} 36. Kd2 {[%clk 0:04:41]}  Qc4 {[%clk 0:04:18]} 37. Ba3 {[%clk 0:04:05]}  Bf8 {[%clk 0:04:11]} 38. g5 {[%clk 0:03:59]}  Bxe7 {[%clk 0:04:08]} 39. Bxe7 {[%clk 0:04:00]}  Kxe7 {[%clk 0:03:59]} 40. gxf6+ {[%clk 0:04:00]}  Kxf6 {[%clk 0:04:00]} 41. Qxh7 {[%clk 0:03:59]}  Ke6 {[%clk 0:03:49]} 42. Qd3 {[%clk 0:03:52]}  Qb4+ {[%clk 0:03:48]} 43. Nc3 {[%clk 0:03:50]}  Kf7 {[%clk 0:03:47]} 44. Qf5+ {[%clk 0:03:51]}  Ke7 {[%clk 0:03:46]} 45. Qe5+ {[%clk 0:03:51]}  Kf7 {[%clk 0:03:46]} 46. Qxd5+ {[%clk 0:03:52]}  Kg7 {[%clk 0:03:47]} 47. Qc5 {[%clk 0:03:50]}  Qb7 {[%clk 0:03:45]} 48. e4 {[%clk 0:03:48]}  Qf7 {[%clk 0:03:44]} 49. Qg5+ {[%clk 0:03:48]}  Kh8 {[%clk 0:03:41]} 50. Qe5+ {[%clk 0:03:47]}  Kg8 {[%clk 0:03:38]} 51. Ke3 {[%clk 0:03:44]}  Kh7 {[%clk 0:03:35]} 52. Nd5 {[%clk 0:03:41]}  Kg8 {[%clk 0:03:33]} 53. Nf6+ {[%clk 0:03:32]}  Kg7 {[%clk 0:03:31]} 54. Qg5+ {[%clk 0:03:33]}  Kf8 {[%clk 0:03:20]} 55. Qg8+ {[%clk 0:03:34]}  Ke7 {[%clk 0:03:16]} 56. Qxf7+ {[%clk 0:03:34]}  Kd6 {[%clk 0:03:17]} 57. Qd7# {[%clk 0:03:32]} 1-0


[Site "Internet"]

[Event "Chessable Masters - Torneo preliminare"]
[White "Rustemov, Alexander"]
[Black "Mekhitarian, Krikor Sevag"]
[WhiteFideId "4119002"]
[BlackFideId "2107660"]
[WhiteElo "2494"]
[BlackElo "2594"]
[Result "1/2-1/2"]
[Round "5"]
[TimeControl "600+2"]
[Date "2023.03.13"]
[WhiteClock "0:00:30"]
[BlackClock "0:00:24"]

1. d4 {[%clk 0:10:01]}  Nf6 {[%clk 0:09:58]} 2. c4 {[%clk 0:10:01]}  e6 {[%clk 0:09:53]} 3. Nf3 {[%clk 0:10:01]}  d5 {[%clk 0:09:45]} 4. Nc3 {[%clk 0:09:59]}  Bb4 {[%clk 0:09:45]} 5. Bg5 {[%clk 0:09:59]}  h6 {[%clk 0:09:46]} 6. Bxf6 {[%clk 0:09:59]}  Qxf6 {[%clk 0:09:48]} 7. e3 {[%clk 0:10:00]}  O-O {[%clk 0:09:47]} 8. Qb3 {[%clk 0:10:00]}  c5 {[%clk 0:09:41]} 9. cxd5 {[%clk 0:10:01]}  exd5 {[%clk 0:09:32]} 10. dxc5 {[%clk 0:10:02]}  Bxc3+ {[%clk 0:09:15]} 11. Qxc3 {[%clk 0:10:02]}  Qxc3+ {[%clk 0:09:17]} 12. bxc3 {[%clk 0:10:04]}  Nd7 {[%clk 0:08:53]} 13. Rd1 {[%clk 0:10:03]}  Nxc5 {[%clk 0:08:54]} 14. Rxd5 {[%clk 0:10:03]}  b6 {[%clk 0:08:55]} 15. c4 {[%clk 0:10:02]}  Be6 {[%clk 0:07:42]} 16. Rd4 {[%clk 0:09:46]}  Rac8 {[%clk 0:07:36]} 17. Be2 {[%clk 0:09:43]}  Na4 {[%clk 0:06:26]} 18. Kd2 {[%clk 0:09:39]}  Rc5 {[%clk 0:06:27]} 19. Rb1 {[%clk 0:08:27]}  Rfc8 {[%clk 0:06:16]} 20. Rb5 {[%clk 0:08:12]}  Rxb5 {[%clk 0:05:37]} 21. cxb5 {[%clk 0:08:11]}  Nc3 {[%clk 0:05:38]} 22. Bd3 {[%clk 0:07:30]}  Nxa2 {[%clk 0:04:16]} 23. Ra4 {[%clk 0:07:18]}  Rc7 {[%clk 0:04:14]} 24. Nd4 {[%clk 0:07:11]}  Nc3 {[%clk 0:04:15]} 25. Ra3 {[%clk 0:06:22]}  Nd5 {[%clk 0:04:11]} 26. Nc6 {[%clk 0:06:08]}  a5 {[%clk 0:03:43]} 27. bxa6 {[%clk 0:06:03]}  Rxc6 {[%clk 0:03:44]} 28. a7 {[%clk 0:06:03]}  Nc7 {[%clk 0:03:45]} 29. Be4 {[%clk 0:04:25]}  Rc5 {[%clk 0:01:59]} 30. a8=Q+ {[%clk 0:03:40]}  Nxa8 {[%clk 0:01:58]} 31. Rxa8+ {[%clk 0:03:41]}  Rc8 {[%clk 0:01:59]} 32. Ra7 {[%clk 0:03:26]}  b5 {[%clk 0:01:38]} 33. Rb7 {[%clk 0:03:18]}  Rd8+ {[%clk 0:01:22]} 34. Kc3 {[%clk 0:03:09]}  Bd5 {[%clk 0:01:23]} 35. Bxd5 {[%clk 0:03:03]}  Rxd5 {[%clk 0:01:25]} 36. e4 {[%clk 0:02:57]}  Rc5+ {[%clk 0:01:21]} 37. Kd3 {[%clk 0:02:54]}  g5 {[%clk 0:01:18]} 38. f3 {[%clk 0:02:42]}  Kg7 {[%clk 0:01:19]} 39. g3 {[%clk 0:02:43]}  Kg6 {[%clk 0:01:17]} 40. f4 {[%clk 0:02:43]}  gxf4 {[%clk 0:01:10]} 41. gxf4 {[%clk 0:02:45]}  Rh5 {[%clk 0:01:11]} 42. Rb6+ {[%clk 0:02:29]}  Kg7 {[%clk 0:01:11]} 43. e5 {[%clk 0:02:18]}  Rxh2 {[%clk 0:01:12]} 44. Rxb5 {[%clk 0:02:19]}  Rf2 {[%clk 0:01:04]} 45. Ke3 {[%clk 0:02:19]}  Rf1 {[%clk 0:01:06]} 46. Ke4 {[%clk 0:02:12]}  h5 {[%clk 0:00:56]} 47. Kf5 {[%clk 0:02:11]}  h4 {[%clk 0:00:54]} 48. Rb3 {[%clk 0:02:04]}  Ra1 {[%clk 0:00:40]} 49. Rh3 {[%clk 0:02:02]}  Ra5 {[%clk 0:00:41]} 50. Kg4 {[%clk 0:01:29]}  f6 {[%clk 0:00:35]} 51. e6 {[%clk 0:01:24]}  Kg6 {[%clk 0:00:23]} 52. Re3 {[%clk 0:01:16]}  f5+ {[%clk 0:00:20]} 53. Kxh4 {[%clk 0:01:15]}  Ra8 {[%clk 0:00:21]} 54. e7 {[%clk 0:01:09]}  Re8 {[%clk 0:00:21]} 55. Ra3 {[%clk 0:00:32]}  Rxe7 {[%clk 0:00:21]} 56. Ra6+ {[%clk 0:00:33]}  Kf7 {[%clk 0:00:22]} 57. Kg5 {[%clk 0:00:34]}  Rb7 {[%clk 0:00:24]} 58. Kxf5 {[%clk 0:00:30]}  Rb5+ {[%clk 0:00:24]} 1/2-1/2


[Site "Internet"]

[Event "Chessable Masters - Torneo preliminare"]
[White "Raja, Rithvik R"]
[Black "Kaufman, Lawrence"]
[WhiteFideId "35007394"]
[BlackFideId "2000555"]
[WhiteElo "2387"]
[BlackElo "2223"]
[Result "1-0"]
[Round "5"]
[TimeControl "600+2"]
[Date "2023.03.13"]
[WhiteClock "0:00:33"]
[BlackClock "0:00:04"]

1. c4 {[%clk 0:09:59]}  e5 {[%clk 0:09:12]} 2. g3 {[%clk 0:09:58]}  Nf6 {[%clk 0:09:01]} 3. Bg2 {[%clk 0:09:59]}  c6 {[%clk 0:08:52]} 4. d4 {[%clk 0:09:49]}  d6 {[%clk 0:08:33]} 5. Nc3 {[%clk 0:09:43]}  Be7 {[%clk 0:08:20]} 6. d5 {[%clk 0:09:31]}  O-O {[%clk 0:08:10]} 7. Nf3 {[%clk 0:09:12]}  cxd5 {[%clk 0:07:51]} 8. cxd5 {[%clk 0:09:13]}  Nbd7 {[%clk 0:07:37]} 9. O-O {[%clk 0:09:10]}  a5 {[%clk 0:07:29]} 10. Nd2 {[%clk 0:08:56]}  Nc5 {[%clk 0:07:26]} 11. Nc4 {[%clk 0:08:13]}  Re8 {[%clk 0:06:55]} 12. Be3 {[%clk 0:08:05]}  b6 {[%clk 0:06:41]} 13. Nxe5 {[%clk 0:07:33]}  dxe5 {[%clk 0:06:02]} 14. d6 {[%clk 0:07:35]}  Bb7 {[%clk 0:06:03]} 15. Bxc5 {[%clk 0:07:01]}  Bxg2 {[%clk 0:05:56]} 16. dxe7 {[%clk 0:07:02]}  Qc8 {[%clk 0:05:02]} 17. Bd6 {[%clk 0:07:03]}  Qh3 {[%clk 0:04:21]} 18. f3 {[%clk 0:07:05]}  Bxf1 {[%clk 0:04:13]} 19. Qxf1 {[%clk 0:07:06]}  Qxf1+ {[%clk 0:04:10]} 20. Kxf1 {[%clk 0:07:08]}  Rac8 {[%clk 0:03:19]} 21. Rd1 {[%clk 0:06:56]}  e4 {[%clk 0:02:32]} 22. fxe4 {[%clk 0:06:51]}  Ng4 {[%clk 0:02:22]} 23. Kg1 {[%clk 0:06:47]}  f6 {[%clk 0:02:03]} 24. Nb5 {[%clk 0:06:06]}  Ne3 {[%clk 0:01:14]} 25. Rd4 {[%clk 0:05:30]}  Nc4 {[%clk 0:00:50]} 26. Kf2 {[%clk 0:04:36]}  Rc6 {[%clk 0:00:27]} 27. Bf4 {[%clk 0:03:07]}  Rxe7 {[%clk 0:00:26]} 28. b3 {[%clk 0:03:08]}  Ne5 {[%clk 0:00:23]} 29. Rd8+ {[%clk 0:03:10]}  Kf7 {[%clk 0:00:21]} 30. Nd6+ {[%clk 0:03:00]}  Ke6 {[%clk 0:00:20]} 31. Nf5 {[%clk 0:03:01]}  Rd7 {[%clk 0:00:17]} 32. Nd4+ {[%clk 0:03:01]}  Rxd4 {[%clk 0:00:13]} 33. Rxd4 {[%clk 0:03:03]}  Rc2 {[%clk 0:00:14]} 34. Bxe5 {[%clk 0:02:05]}  fxe5 {[%clk 0:00:11]} 35. Rd5 {[%clk 0:02:07]}  Rxa2 {[%clk 0:00:11]} 36. Rb5 {[%clk 0:02:09]}  Rb2 {[%clk 0:00:10]} 37. Rxb6+ {[%clk 0:02:11]}  Kf7 {[%clk 0:00:10]} 38. Rb7+ {[%clk 0:02:10]}  Kf6 {[%clk 0:00:11]} 39. Rb5 {[%clk 0:02:12]}  Ke6 {[%clk 0:00:07]} 40. Ke3 {[%clk 0:02:11]}  Kf6 {[%clk 0:00:08]} 41. h4 {[%clk 0:02:12]}  h5 {[%clk 0:00:07]} 42. Kd3 {[%clk 0:02:11]}  g6 {[%clk 0:00:07]} 43. e3 {[%clk 0:01:49]}  Ke6 {[%clk 0:00:07]} 44. Rb6+ {[%clk 0:01:43]}  Kf7 {[%clk 0:00:07]} 45. Rb5 {[%clk 0:01:37]}  Ke6 {[%clk 0:00:06]} 46. Rb6+ {[%clk 0:01:04]}  Kf7 {[%clk 0:00:06]} 47. Kc4 {[%clk 0:01:05]}  Re2 {[%clk 0:00:05]} 48. Kd5 {[%clk 0:01:02]}  Rxe3 {[%clk 0:00:05]} 49. Kxe5 {[%clk 0:01:03]}  Rxg3 {[%clk 0:00:06]} 50. Rb7+ {[%clk 0:01:04]}  Kg8 {[%clk 0:00:06]} 51. Kf6 {[%clk 0:01:04]}  Rg4 {[%clk 0:00:05]} 52. e5 {[%clk 0:01:03]}  Rxh4 {[%clk 0:00:04]} 53. Rb8+ {[%clk 0:00:33]} 1-0


[Site "Internet"]

[Event "Chessable Masters - Torneo preliminare"]
[White "Cuenca Jimenez, Jose Fernando"]
[Black "Jonkman, Harmen"]
[WhiteFideId "2255570"]
[BlackFideId "1002708"]
[WhiteElo "2455"]
[BlackElo "2351"]
[Result "1-0"]
[Round "5"]
[TimeControl "600+2"]
[Date "2023.03.13"]
[WhiteClock "0:01:46"]
[BlackClock "0:04:19"]

1. d4 {[%clk 0:10:01]}  Nf6 {[%clk 0:09:59]} 2. c4 {[%clk 0:09:58]}  e6 {[%clk 0:09:57]} 3. Nf3 {[%clk 0:09:59]}  Bb4+ {[%clk 0:09:57]} 4. Bd2 {[%clk 0:09:59]}  a5 {[%clk 0:09:57]} 5. a3 {[%clk 0:09:59]}  Bxd2+ {[%clk 0:09:56]} 6. Qxd2 {[%clk 0:10:01]}  b6 {[%clk 0:09:56]} 7. Nc3 {[%clk 0:10:03]}  Bb7 {[%clk 0:09:58]} 8. Qf4 {[%clk 0:10:04]}  d6 {[%clk 0:09:49]} 9. e4 {[%clk 0:10:03]}  Nbd7 {[%clk 0:09:50]} 10. O-O-O {[%clk 0:09:55]}  Qe7 {[%clk 0:09:45]} 11. e5 {[%clk 0:08:49]}  Nh5 {[%clk 0:09:30]} 12. Qe3 {[%clk 0:08:14]}  g6 {[%clk 0:08:49]} 13. Bd3 {[%clk 0:08:08]}  dxe5 {[%clk 0:08:32]} 14. dxe5 {[%clk 0:08:00]}  O-O-O {[%clk 0:08:24]} 15. g4 {[%clk 0:06:59]}  Ng7 {[%clk 0:08:14]} 16. Be4 {[%clk 0:06:58]}  Nc5 {[%clk 0:08:07]} 17. Bxb7+ {[%clk 0:06:52]}  Kxb7 {[%clk 0:08:08]} 18. Kc2 {[%clk 0:06:29]}  Rxd1 {[%clk 0:07:58]} 19. Rxd1 {[%clk 0:06:28]}  h5 {[%clk 0:07:59]} 20. b4 {[%clk 0:06:01]}  axb4 {[%clk 0:07:55]} 21. axb4 {[%clk 0:06:03]}  Na6 {[%clk 0:07:49]} 22. Qe4+ {[%clk 0:05:39]}  c6 {[%clk 0:07:23]} 23. b5 {[%clk 0:05:24]}  Nb4+ {[%clk 0:07:20]} 24. Kb3 {[%clk 0:04:49]}  hxg4 {[%clk 0:06:38]} 25. Nd4 {[%clk 0:04:17]}  Rc8 {[%clk 0:06:23]} 26. Ra1 {[%clk 0:03:30]}  Nf5 {[%clk 0:06:17]} 27. bxc6+ {[%clk 0:03:18]}  Nxc6 {[%clk 0:06:15]} 28. Nxc6 {[%clk 0:02:23]}  Rxc6 {[%clk 0:06:15]} 29. Nb5 {[%clk 0:02:21]}  Qc5 {[%clk 0:05:34]} 30. Ra7+ {[%clk 0:02:06]}  Kb8 {[%clk 0:05:34]} 31. Rxf7 {[%clk 0:02:00]}  Ne7 {[%clk 0:04:19]} 32. Rxe7 {[%clk 0:01:46]} 1-0


[Site "Internet"]

[Event "Chessable Masters - Torneo preliminare"]
[White "Abdusattorov, Nodirbek"]
[Black "Fedoseev, Vladimir"]
[WhiteFideId "14204118"]
[BlackFideId "24130737"]
[WhiteElo "2714"]
[BlackElo "2752"]
[Result "0-1"]
[Round "6"]
[TimeControl "600+2"]
[Date "2023.03.13"]
[WhiteClock "0:00:07"]
[BlackClock "0:00:13"]

1. e4 {[%clk 0:10:01]}  c6 {[%clk 0:09:53]} 2. d4 {[%clk 0:10:01]}  d5 {[%clk 0:09:54]} 3. e5 {[%clk 0:10:03]}  Bf5 {[%clk 0:09:55]} 4. Nd2 {[%clk 0:10:01]}  e6 {[%clk 0:09:53]} 5. Nb3 {[%clk 0:10:03]}  Nd7 {[%clk 0:09:54]} 6. Nf3 {[%clk 0:10:03]}  Qc7 {[%clk 0:09:53]} 7. c3 {[%clk 0:09:51]}  f6 {[%clk 0:09:47]} 8. Bf4 {[%clk 0:09:43]}  O-O-O {[%clk 0:09:40]} 9. Bg3 {[%clk 0:09:33]}  fxe5 {[%clk 0:09:36]} 10. dxe5 {[%clk 0:09:32]}  c5 {[%clk 0:09:32]} 11. Be2 {[%clk 0:09:20]}  h6 {[%clk 0:09:30]} 12. O-O {[%clk 0:08:59]}  Ne7 {[%clk 0:08:57]} 13. Re1 {[%clk 0:08:13]}  g5 {[%clk 0:08:53]} 14. c4 {[%clk 0:07:52]}  Nb6 {[%clk 0:07:03]} 15. Nbd2 {[%clk 0:07:26]}  Bg7 {[%clk 0:06:37]} 16. Qb3 {[%clk 0:06:52]}  Kb8 {[%clk 0:06:16]} 17. cxd5 {[%clk 0:06:47]}  Nexd5 {[%clk 0:05:57]} 18. Rac1 {[%clk 0:06:41]}  Nb4 {[%clk 0:05:47]} 19. Nc4 {[%clk 0:06:04]}  Nxc4 {[%clk 0:05:31]} 20. Qxc4 {[%clk 0:05:53]}  Rd5 {[%clk 0:04:21]} 21. Red1 {[%clk 0:04:50]}  Rhd8 {[%clk 0:04:17]} 22. Rxd5 {[%clk 0:04:52]}  Rxd5 {[%clk 0:04:18]} 23. h3 {[%clk 0:04:40]}  a6 {[%clk 0:03:49]} 24. a3 {[%clk 0:04:06]}  Nd3 {[%clk 0:03:06]} 25. Bxd3 {[%clk 0:03:59]}  Rxd3 {[%clk 0:03:07]} 26. b4 {[%clk 0:03:54]}  b5 {[%clk 0:03:01]} 27. Qa2 {[%clk 0:03:46]}  c4 {[%clk 0:02:59]} 28. a4 {[%clk 0:03:47]}  Bf8 {[%clk 0:02:20]} 29. axb5 {[%clk 0:03:47]}  axb5 {[%clk 0:02:20]} 30. Kh2 {[%clk 0:03:37]}  Qa7 {[%clk 0:02:14]} 31. Qe2 {[%clk 0:03:27]}  Qa3 {[%clk 0:02:07]} 32. Qf1 {[%clk 0:03:17]}  Bxb4 {[%clk 0:01:53]} 33. Ra1 {[%clk 0:02:42]}  Qb3 {[%clk 0:01:42]} 34. Rb1 {[%clk 0:02:09]}  Qa4 {[%clk 0:01:41]} 35. Ra1 {[%clk 0:02:00]}  Ba3 {[%clk 0:01:38]} 36. Qe2 {[%clk 0:01:49]}  b4 {[%clk 0:01:23]} 37. Ne1 {[%clk 0:01:50]}  Rd4 {[%clk 0:01:12]} 38. f3 {[%clk 0:01:42]}  c3 {[%clk 0:01:04]} 39. Qe3 {[%clk 0:01:41]}  Qd7 {[%clk 0:00:45]} 40. Bf2 {[%clk 0:01:25]}  Rd2 {[%clk 0:00:46]} 41. Qc5 {[%clk 0:01:27]}  Rd5 {[%clk 0:00:30]} 42. Qc4 {[%clk 0:01:02]}  Qb5 {[%clk 0:00:17]} 43. Qb3 {[%clk 0:01:03]}  Kc8 {[%clk 0:00:17]} 44. Rxa3 {[%clk 0:01:04]}  bxa3 {[%clk 0:00:16]} 45. Qxc3+ {[%clk 0:01:06]}  Kd7 {[%clk 0:00:16]} 46. Qxa3 {[%clk 0:01:07]}  Ke8 {[%clk 0:00:16]} 47. Qa8+ {[%clk 0:01:02]}  Rd8 {[%clk 0:00:17]} 48. Qa7 {[%clk 0:00:59]}  Qxe5+ {[%clk 0:00:17]} 49. Bg3 {[%clk 0:01:01]}  Qf6 {[%clk 0:00:19]} 50. Qc7 {[%clk 0:00:56]}  Rd7 {[%clk 0:00:17]} 51. Qc6 {[%clk 0:00:55]}  Qd4 {[%clk 0:00:15]} 52. Qc8+ {[%clk 0:00:46]}  Rd8 {[%clk 0:00:16]} 53. Qc7 {[%clk 0:00:48]}  Rd7 {[%clk 0:00:14]} 54. Qb8+ {[%clk 0:00:50]}  Kf7 {[%clk 0:00:14]} 55. Be5 {[%clk 0:00:51]}  Rd8 {[%clk 0:00:15]} 56. Qc7+ {[%clk 0:00:49]}  Qd7 {[%clk 0:00:16]} 57. Qa5 {[%clk 0:00:50]}  Qd5 {[%clk 0:00:14]} 58. Qc7+ {[%clk 0:00:51]}  Rd7 {[%clk 0:00:15]} 59. Qb8 {[%clk 0:00:52]}  Qc5 {[%clk 0:00:11]} 60. Bg3 {[%clk 0:00:44]}  Qf8 {[%clk 0:00:10]} 61. Qe5 {[%clk 0:00:43]}  Rd5 {[%clk 0:00:10]} 62. Qc7+ {[%clk 0:00:43]}  Qe7 {[%clk 0:00:11]} 63. Qc3 {[%clk 0:00:45]}  h5 {[%clk 0:00:09]} 64. Qh8 {[%clk 0:00:14]}  h4 {[%clk 0:00:10]} 65. Bf2 {[%clk 0:00:16]}  Qf6 {[%clk 0:00:09]} 66. Qc8 {[%clk 0:00:14]}  Qe5+ {[%clk 0:00:10]} 67. Kg1 {[%clk 0:00:15]}  Rd1 {[%clk 0:00:11]} 68. Qb7+ {[%clk 0:00:16]}  Kg6 {[%clk 0:00:12]} 69. Qb4 {[%clk 0:00:17]}  Qe2 {[%clk 0:00:12]} 70. Qc3 {[%clk 0:00:14]}  Bd3 {[%clk 0:00:12]} 71. Qc8 {[%clk 0:00:04]}  Rxe1+ {[%clk 0:00:11]} 72. Bxe1 {[%clk 0:00:06]}  Qxe1+ {[%clk 0:00:12]} 73. Kh2 {[%clk 0:00:08]}  Qe5+ {[%clk 0:00:14]} 74. Kg1 {[%clk 0:00:10]}  Qf6 {[%clk 0:00:10]} 75. Qg8+ {[%clk 0:00:10]}  Kh6 {[%clk 0:00:11]} 76. Qb8 {[%clk 0:00:10]}  Bg6 {[%clk 0:00:12]} 77. Qc8 {[%clk 0:00:08]}  Bf5 {[%clk 0:00:13]} 78. Qg8 {[%clk 0:00:08]}  Qd4+ {[%clk 0:00:12]} 79. Kh2 {[%clk 0:00:08]}  Qg7 {[%clk 0:00:12]} 80. Qb8 {[%clk 0:00:08]}  Kg6 {[%clk 0:00:13]} 81. Kg1 {[%clk 0:00:10]}  Qf7 {[%clk 0:00:11]} 82. Qd8 {[%clk 0:00:10]}  e5 {[%clk 0:00:11]} 83. Kh1 {[%clk 0:00:09]}  Qe6 {[%clk 0:00:13]} 84. Kh2 {[%clk 0:00:07]}  e4 {[%clk 0:00:14]} 85. fxe4 {[%clk 0:00:09]}  Bxe4 {[%clk 0:00:16]} 86. Qb8 {[%clk 0:00:10]}  Kf5 {[%clk 0:00:15]} 87. Qf8+ {[%clk 0:00:11]}  Kg6 {[%clk 0:00:13]} 88. Qb8 {[%clk 0:00:13]}  Bd5 {[%clk 0:00:12]} 89. Qd8 {[%clk 0:00:07]}  Qe4 {[%clk 0:00:13]} 90. Qd6+ {[%clk 0:00:07]}  Kh5 {[%clk 0:00:13]} 0-1


[Site "Internet"]

[Event "Chessable Masters - Torneo preliminare"]
[White "Alonso Rosell, Alvar"]
[Black "Le, Quang Liem"]
[WhiteFideId "2270544"]
[BlackFideId "12401137"]
[WhiteElo "2473"]
[BlackElo "2661"]
[Result "0-1"]
[Round "6"]
[TimeControl "600+2"]
[Date "2023.03.13"]
[WhiteClock "0:00:03"]
[BlackClock "0:02:28"]

1. d4 {[%clk 0:10:01]}  Nf6 {[%clk 0:10:00]} 2. c4 {[%clk 0:10:02]}  e6 {[%clk 0:10:02]} 3. Nf3 {[%clk 0:10:03]}  d5 {[%clk 0:10:03]} 4. g3 {[%clk 0:10:04]}  Bb4+ {[%clk 0:10:03]} 5. Bd2 {[%clk 0:10:02]}  a5 {[%clk 0:10:03]} 6. Qc2 {[%clk 0:09:38]}  O-O {[%clk 0:10:02]} 7. Bg2 {[%clk 0:09:38]}  Be7 {[%clk 0:10:00]} 8. O-O {[%clk 0:09:29]}  Nbd7 {[%clk 0:10:01]} 9. Bf4 {[%clk 0:09:03]}  c6 {[%clk 0:10:00]} 10. Nbd2 {[%clk 0:08:51]}  Nh5 {[%clk 0:10:00]} 11. Be5 {[%clk 0:08:49]}  f6 {[%clk 0:09:26]} 12. Bf4 {[%clk 0:08:50]}  g5 {[%clk 0:09:21]} 13. Be3 {[%clk 0:08:30]}  Ng7 {[%clk 0:09:21]} 14. Nb1 {[%clk 0:08:16]}  b5 {[%clk 0:08:23]} 15. cxd5 {[%clk 0:07:40]}  cxd5 {[%clk 0:08:23]} 16. Rc1 {[%clk 0:07:41]}  Ba6 {[%clk 0:08:18]} 17. Nc3 {[%clk 0:05:31]}  Rc8 {[%clk 0:08:15]} 18. Qd3 {[%clk 0:05:10]}  Qb6 {[%clk 0:08:01]} 19. a4 {[%clk 0:05:02]}  bxa4 {[%clk 0:07:36]} 20. Qd2 {[%clk 0:03:50]}  Bb4 {[%clk 0:07:02]} 21. h4 {[%clk 0:03:48]}  g4 {[%clk 0:06:40]} 22. Nh2 {[%clk 0:03:32]}  h5 {[%clk 0:06:37]} 23. Bh6 {[%clk 0:03:30]}  Qd6 {[%clk 0:06:11]} 24. Rxa4 {[%clk 0:00:58]}  Nb6 {[%clk 0:06:10]} 25. Ra2 {[%clk 0:00:58]}  Rf7 {[%clk 0:05:18]} 26. Bxg7 {[%clk 0:00:26]}  Kxg7 {[%clk 0:05:20]} 27. Nf1 {[%clk 0:00:23]}  Nc4 {[%clk 0:05:13]} 28. Qd1 {[%clk 0:00:19]}  Nxb2 {[%clk 0:05:00]} 29. Rxb2 {[%clk 0:00:21]}  Bxc3 {[%clk 0:04:47]} 30. Rbc2 {[%clk 0:00:22]}  Rfc7 {[%clk 0:04:47]} 31. e4 {[%clk 0:00:24]}  dxe4 {[%clk 0:04:39]} 32. Bxe4 {[%clk 0:00:21]}  Bb5 {[%clk 0:04:28]} 33. Ne3 {[%clk 0:00:18]}  Ba4 {[%clk 0:04:19]} 34. d5 {[%clk 0:00:19]}  Bxc2 {[%clk 0:04:14]} 35. Bxc2 {[%clk 0:00:20]}  Be5 {[%clk 0:03:36]} 36. Qd3 {[%clk 0:00:18]}  f5 {[%clk 0:03:37]} 37. Nxf5+ {[%clk 0:00:06]}  exf5 {[%clk 0:03:38]} 38. Qxf5 {[%clk 0:00:07]}  Kg8 {[%clk 0:03:25]} 39. Re1 {[%clk 0:00:05]}  Bd4 {[%clk 0:02:40]} 40. Kh1 {[%clk 0:00:07]}  Rxc2 {[%clk 0:02:37]} 41. Re6 {[%clk 0:00:07]}  Qf8 {[%clk 0:02:28]} 42. Qg5+ {[%clk 0:00:03]}  Bg7 {[%clk 0:02:28]} 0-1


[Site "Internet"]

[Event "Chessable Masters - Torneo preliminare"]
[White "Artemiev, Vladislav"]
[Black "Vachier-Lagrave, Maxime"]
[WhiteFideId "24101605"]
[BlackFideId "623539"]
[WhiteElo "2735"]
[BlackElo "2762"]
[Result "1/2-1/2"]
[Round "6"]
[TimeControl "600+2"]
[Date "2023.03.13"]
[WhiteClock "0:00:21"]
[BlackClock "0:00:55"]

1. Nf3 {[%clk 0:10:00]}  d5 {[%clk 0:09:58]} 2. d4 {[%clk 0:09:51]}  Nf6 {[%clk 0:09:58]} 3. c4 {[%clk 0:09:52]}  dxc4 {[%clk 0:09:59]} 4. e3 {[%clk 0:09:53]}  e6 {[%clk 0:10:01]} 5. Bxc4 {[%clk 0:09:53]}  a6 {[%clk 0:10:02]} 6. O-O {[%clk 0:09:52]}  c5 {[%clk 0:10:04]} 7. Be2 {[%clk 0:09:39]}  cxd4 {[%clk 0:10:02]} 8. Nxd4 {[%clk 0:09:27]}  Be7 {[%clk 0:09:57]} 9. b3 {[%clk 0:09:23]}  O-O {[%clk 0:09:56]} 10. Bb2 {[%clk 0:09:23]}  b5 {[%clk 0:09:55]} 11. Nd2 {[%clk 0:08:29]}  Bb7 {[%clk 0:09:47]} 12. Bf3 {[%clk 0:08:04]}  Nd5 {[%clk 0:08:12]} 13. a4 {[%clk 0:07:53]}  bxa4 {[%clk 0:08:04]} 14. Rxa4 {[%clk 0:07:51]}  Nd7 {[%clk 0:08:01]} 15. Nc4 {[%clk 0:07:27]}  Nc5 {[%clk 0:07:20]} 16. Ra1 {[%clk 0:07:17]}  a5 {[%clk 0:07:04]} 17. Ba3 {[%clk 0:04:47]}  Qc7 {[%clk 0:05:41]} 18. Qd2 {[%clk 0:03:48]}  Rfd8 {[%clk 0:05:16]} 19. Rfc1 {[%clk 0:02:38]}  Nb4 {[%clk 0:03:39]} 20. Bxb7 {[%clk 0:02:25]}  Nxb7 {[%clk 0:02:30]} 21. f4 {[%clk 0:00:45]}  Nc5 {[%clk 0:01:51]} 22. Bxb4 {[%clk 0:00:25]}  axb4 {[%clk 0:01:50]} 23. Rxa8 {[%clk 0:00:24]}  Rxa8 {[%clk 0:01:52]} 24. Qxb4 {[%clk 0:00:20]}  Nd3 {[%clk 0:01:42]} 25. Qb6 {[%clk 0:00:21]}  Qxb6 {[%clk 0:01:08]} 26. Nxb6 {[%clk 0:00:22]}  Nxc1 {[%clk 0:01:10]} 27. Nxa8 {[%clk 0:00:23]}  Bc5 {[%clk 0:01:11]} 28. Nc7 {[%clk 0:00:17]}  Bxd4 {[%clk 0:01:12]} 29. exd4 {[%clk 0:00:19]}  Nxb3 {[%clk 0:00:56]} 30. d5 {[%clk 0:00:20]}  exd5 {[%clk 0:00:57]} 31. Nxd5 {[%clk 0:00:21]}  Nd4 {[%clk 0:00:55]} 1/2-1/2


[Site "Internet"]